fUSD/lending_fUSD_20250610
["ID","MTS","AMOUNT","RATE_DAILY","PERIOD"]
[365284732,1749577843999,-4085.0,0.00018444,2]
[365284734,1749577844009,-1000.0,0.00018448,2]
[365284735,1749577844019,-404.53705236,0.00018452,2]
[365284736,1749577844029,-161.23379415,0.00018453,2]
[365284737,1749577844039,-404.53705236,0.00018555,2]
[365284738,1749577844049,-500.0,0.00018574,2]
[365284739,1749577844059,-2083.33,0.00018575,2]
[365284740,1749577844068,-465.80751638,0.00018575,2]
[365284741,1749577844078,-711.42,0.00018575,2]
[365284742,1749577844087,-1168.38,0.00018575,2]
[365284743,1749577844097,-679.66,0.00018575,2]
[365284744,1749577844107,-11171.37,0.00018575,2]
[365284745,1749577844116,-939.02,0.00018575,2]
[365284746,1749577844127,-490.0,0.00018575,2]
[365284747,1749577844137,-1095.65,0.00018575,2]
[365284748,1749577844147,-490.0,0.00018575,2]
[365284749,1749577844156,-660.51,0.00018575,2]
[365284750,1749577844166,-618.42,0.00018575,2]
[365284751,1749577844175,-586.14,0.00018575,2]
[365284752,1749577844185,-490.0,0.00018575,2]
[365284753,1749577844195,-490.0,0.00018575,2]
[365284754,1749577844205,-490.0,0.00018575,2]
[365284755,1749577844216,-990.97282202,0.0001858,2]
[365284756,1749577844226,-400.0,0.00018595,2]
[365284757,1749577844236,-2344.68,0.000186,2]
[365284758,1749577844246,-404.53705236,0.00018659,2]
[365284759,1749577844256,-1541.15487927,0.00018687,2]
[365284760,1749577844265,-1947.457,0.00018687,2]
[365284761,1749577844274,-1000.0,0.00018696,2]
[365284762,1749577844283,-2344.68,0.000187,2]
[365284763,1749577844293,-200.0,0.00018703,5]
[365284764,1749577844302,-2083.33,0.00018739,2]
[365284765,1749577844311,-711.42,0.00018739,2]
[365284766,1749577844322,-1168.38,0.00018739,2]
[365284767,1749577844332,-679.66,0.00018739,2]
[365284768,1749577844341,-11171.37,0.00018739,2]
[365284769,1749577844350,-939.02,0.00018739,2]
[365284770,1749577844360,-490.0,0.00018739,2]
[365284771,1749577844370,-1095.65,0.00018739,2]
[365284772,1749577844380,-490.0,0.00018739,2]
[365284773,1749577844389,-660.51,0.00018739,2]
[365284774,1749577844400,-618.42,0.00018739,2]
[365284775,1749577844409,-586.14,0.00018739,2]
[365284777,1749577844418,-490.0,0.00018739,2]
[365284778,1749577844428,-490.0,0.00018739,2]
[365284779,1749577844438,-442.55773846,0.00018739,2]
[365284780,1749577844447,-197.57777096,0.00018762,2]
[365284781,1749577844457,-404.53705236,0.00018762,2]
[365284782,1749577844468,-600.0,0.00018807,2]
[365284783,1749577844478,-404.53705236,0.00018866,2]
[365284784,1749577844488,-4890.99,0.0001888,2]
[365284785,1749577844497,-640.53,0.00018888,2]
[365284786,1749577844508,-980.94485654,0.00018889,2]
[365284787,1749577844517,-2344.68,0.000189,2]
[365284788,1749577844527,-300.0,0.000189,6]
[365284789,1749577844536,-2083.33,0.00018904,2]
[365284790,1749577844546,-711.42,0.00018904,2]
[365284791,1749577844557,-1168.38,0.00018904,2]
[365284792,1749577844567,-679.66,0.00018904,2]
[365284793,1749577844577,-11171.37,0.00018904,2]
[365284794,1749577844587,-939.02,0.00018904,2]
[365284795,1749577844597,-490.0,0.00018904,2]
[365284796,1749577844606,-1095.65,0.00018904,2]
[365284797,1749577844616,-490.0,0.00018904,2]
[365284798,1749577844625,-660.51,0.00018904,2]
[365284799,1749577844635,-618.42,0.00018904,2]
[365284800,1749577844645,-586.14,0.00018904,2]
[365284801,1749577844654,-490.0,0.00018904,2]
[365284802,1749577844664,-490.0,0.00018904,2]
[365284803,1749577844673,-500.0,0.00018904,2]
[365284804,1749577844682,-1000.0,0.00018931,2]
[365284805,1749577844691,-161.23379415,0.00018936,2]
[365284806,1749577844700,-404.53705236,0.00018969,2]
[365284807,1749577844709,-2344.68,0.00019,2]
[365284808,1749577844719,-2344.68,0.00019,2]
[365284809,1749577844728,-273.52,0.00019,2]
[365284810,1749577844737,-250.0,0.00019,2]
[365284811,1749577844748,-600.0,0.00019,6]
[365284812,1749577844758,-645.64,0.00019019,2]
[365284813,1749577844767,-1000.0,0.0001903,2]
[365284814,1749577844776,-1593.02,0.00019041,2]
[365284815,1749577844786,-1062.2,0.00019041,2]
[365284816,1749577844796,-1541.15487927,0.00019051,2]
[365284817,1749577844805,-490.32,0.00019067,2]
[365284818,1749577844815,-500.0,0.00019067,2]
[365284819,1749577844824,-500.0,0.00019067,2]
[365284820,1749577844833,-500.0,0.00019067,2]
[365284821,1749577844842,-500.0,0.00019067,2]
[365284822,1749577844851,-500.0,0.00019067,2]
[365284823,1749577844863,-500.0,0.00019067,2]
[365284824,1749577844873,-654.0,0.00019068,2]
[365284825,1749577844882,-2083.33,0.00019068,2]
[365284826,1749577844891,-711.42,0.00019068,2]
[365284827,1749577844901,-1168.38,0.00019068,2]
[365284828,1749577844911,-679.66,0.00019068,2]
[365284829,1749577844921,-11171.37,0.00019068,2]
[365284830,1749577844931,-939.02,0.00019068,2]
[365284831,1749577844941,-490.0,0.00019068,2]
[365284832,1749577844951,-1095.65,0.00019068,2]
[365284833,1749577844962,-490.0,0.00019068,2]
[365284834,1749577844972,-660.51,0.00019068,2]
[365284835,1749577844982,-618.42,0.00019068,2]
[365284836,1749577844992,-586.14,0.00019068,2]
[365284837,1749577845001,-490.0,0.00019068,2]
[365284838,1749577845012,-490.0,0.00019068,2]
[365284839,1749577845023,-404.53705236,0.00019072,2]
[365284840,1749577845037,-1000.0,0.00019078,2]
[365284841,1749577845047,-160.30486295,0.00019078,2]
[365284842,1749577845057,-276.88206124,0.00019078,2]
[365284843,1749577845066,-900.0,0.000191,6]
[365284844,1749577845076,-1127.941504,0.0001911,2]
[365284845,1749577845086,-350.0,0.00019158,2]
[365284846,1749577845099,-404.53705236,0.00019176,2]
[365284847,1749577845112,-151.0,0.00019177,2]
[365284848,1749577845126,-640.53,0.00019177,2]
[365284849,1749577845139,-40499.4453793,0.00019177,2]
[365284850,1749577845151,-200.0,0.00019178,6]
[365284851,1749577845162,-158.363146,0.00019178,2]
[365284852,1749577845174,-563.97928574,0.00019178,2]
[365284853,1749577845191,-1701.39213414,0.00019178,2]
[365284854,1749577845202,-1701.39213414,0.00019178,2]
[365284855,1749577845214,-1701.39213414,0.00019178,2]
[365284856,1749577845226,-1701.39213414,0.00019178,2]
[365284857,1749577845239,-1701.39213414,0.00019178,2]
[365284858,1749577845255,-1701.39213414,0.00019178,2]
[365284859,1749577845266,-1701.39213414,0.00019178,2]
[365284860,1749577845278,-1701.39213414,0.00019178,2]
[365284861,1749577845290,-1701.39213414,0.00019178,2]
[365284862,1749577845301,-1701.39213414,0.00019178,2]
[365284863,1749577845312,-1701.39213414,0.00019178,2]
[365284864,1749577845323,-1701.39213414,0.00019178,2]
[365284865,1749577845336,-1701.39213414,0.00019178,2]
[365284866,1749577845349,-1701.39213414,0.00019178,2]
[365284867,1749577845361,-1701.39213414,0.00019178,2]
[365284868,1749577845373,-1701.39213414,0.00019178,2]
[365284869,1749577845386,-1701.39213414,0.00019178,2]
[365284870,1749577845398,-1701.39213414,0.00019178,2]
[365284871,1749577845410,-1701.39213414,0.00019178,2]
[365284872,1749577845422,-1701.39213414,0.00019178,2]
[365284873,1749577845435,-1701.39213414,0.00019178,2]
[365284874,1749577845446,-1701.39213414,0.00019178,2]
[365284875,1749577845459,-1701.39213414,0.00019178,2]
[365284876,1749577845471,-1701.39213414,0.00019178,2]
[365284877,1749577845483,-1701.39213414,0.00019178,2]
[365284878,1749577845495,-1701.39213414,0.00019178,2]
[365284879,1749577845507,-1701.39213414,0.00019178,2]
[365284880,1749577845520,-1701.39213414,0.00019178,2]
[365284881,1749577845530,-1701.39213414,0.00019178,2]
[365284882,1749577845542,-1701.39213414,0.00019178,2]
[365284883,1749577845554,-1701.39213414,0.00019178,2]
[365284884,1749577845570,-1701.39213414,0.00019178,2]
[365284885,1749577845583,-1701.39213414,0.00019178,2]
[365284886,1749577845596,-1701.39213414,0.00019178,2]
[365284887,1749577845608,-1701.39213414,0.00019178,2]
[365284888,1749577845620,-1701.39213414,0.00019178,2]
[365284889,1749577845631,-1701.39213414,0.00019178,2]
[365284890,1749577845642,-1701.39213414,0.00019178,2]
[365284891,1749577845652,-1701.39213414,0.00019178,2]
[365284892,1749577845663,-1701.39213414,0.00019178,2]
[365284893,1749577845675,-1701.39213414,0.00019178,2]
[365284894,1749577845689,-1701.39213414,0.00019178,2]
[365284895,1749577845703,-1701.39213414,0.00019178,2]
[365284896,1749577845714,-1701.39213414,0.00019178,2]
[365284897,1749577845724,-1701.39213414,0.00019178,2]
[365284898,1749577845735,-1701.39213414,0.00019178,2]
[365284899,1749577845745,-1701.39213414,0.00019178,2]
[365284900,1749577845757,-1701.39213414,0.00019178,2]
[365284901,1749577845769,-1701.39213414,0.00019178,2]
[365284902,1749577845783,-1701.39213414,0.00019178,2]
[365284903,1749577845796,-1701.39213414,0.00019178,2]
[365284904,1749577845806,-1701.39213414,0.00019178,2]
[365284905,1749577845817,-1701.39213414,0.00019178,2]
[365284906,1749577845827,-1658.8573308,0.00019178,2]
[365284907,1749577845838,-1658.8573308,0.00019178,2]
[365284908,1749577845850,-4.36752766,0.00019178,2]
[365284910,1749577846125,-490.0,0.00016438,2]
[365284911,1749577846137,-490.0,0.00016438,2]
[365284912,1749577846149,-338.71139978,0.00016602,2]
[365284913,1749577846160,-161.83725777,0.00018374,2]
[365284914,1749577846171,-183.55134245,0.00019178,2]
[365284915,1749577846194,-1000.0,0.00019178,2]
[365284916,1749577846476,-470.93846069,0.00019178,2]
[365284917,1749577846488,-418.83477044,0.00019178,2]
[365284918,1749577846501,-646.2480352,0.00019178,2]
[365284922,1749577846729,-490.0,0.00016438,2]
[365284924,1749577846740,-490.0,0.00016438,2]
[365284926,1749577846751,-490.0,0.00016438,2]
[365284927,1749577846762,-460.0,0.00016438,2]
[365284928,1749577846773,-490.0,0.00016438,2]
[365284929,1749577846784,-209.99824722,0.00016438,2]
[365284930,1749577848516,-280.00175278,0.00016438,2]
[365284931,1749577848526,-490.0,0.00016602,2]
[365284932,1749577848535,-490.0,0.00016602,2]
[365284933,1749577848545,-490.0,0.00016602,2]
[365284934,1749577848555,-490.0,0.00016767,2]
[365284935,1749577848565,-358.47,0.00016767,2]
[365284936,1749577848575,-564.85795814,0.00018082,2]
[365284937,1749577849796,-57.87272513,0.00018082,2]
[365284938,1749577849806,-30.77324841,0.00019178,2]
[365284939,1749577849900,691.44264148,0.00038556,120]
[365284940,1749577938254,266.13,0.00019205,30]
[365284941,1749577961735,200.0,0.00015855,2]
[365284942,1749577991287,233.0,0.00015855,2]
[365284943,1749578001671,150.0,0.0002,30]
[365284944,1749578021603,200.0,0.00015855,2]
[365284945,1749578051710,200.0,0.00015855,2]
[365284946,1749578082532,150.0,0.00016001,2]
[365284947,1749578104179,150.0,0.0002,30]
[365284948,1749578176552,1333.0,0.00024175,120]
[365284949,1749578230756,150.0,0.0002,30]
[365284950,1749578236781,501.39583698,0.00038561,60]
[365284951,1749578260368,150.0,0.0002,30]
[365284952,1749578292433,412.57845091,0.00038561,120]
[365284953,1749578414458,150.0,0.0002,30]
[365284954,1749578417484,150.0,0.0002,30]
[365284955,1749578419766,150.0,0.0002,30]
[365284956,1749578421388,150.0,0.0002,30]
[365284957,1749578438806,150.0,0.0002,30]
[365284958,1749578585986,150.0,0.0002,30]
[365284959,1749578669577,183.0,0.0002,30]
[365284960,1749578844099,-155.19105502,0.00016164,2]
[365284961,1749578848097,-666.0,0.00016095,2]
[365284962,1749578848120,-344.80894498,0.00016164,2]
[365284963,1749578848142,-916.43271566,0.00016285,2]
[365284964,1749578853154,-1167.44728434,0.00016285,2]
[365284965,1749578853183,-191.68,0.00016383,2]
[365284966,1749578853206,-156.42,0.00016387,2]
[365284967,1749578853230,-752.4202,0.00016411,2]
[365284968,1749578853253,-1200.0,0.00016436,2]
[365284969,1749578853276,-500.0,0.00016437,2]
[365284970,1749578853304,-208.55740893,0.00016437,2]
[365284971,1749578853326,-176.63108758,0.00016437,2]
[365284972,1749578853348,-300.0,0.00016437,2]
[365284973,1749578853372,-491.34,0.00016438,2]
[365284974,1749578853395,-480.0,0.00016438,2]
[365284975,1749578853417,-296.97250462,0.00016438,2]
[365284976,1749578853438,-490.0,0.00016438,2]
[365284977,1749578853460,-490.0,0.00016438,2]
[365284978,1749578853483,-490.0,0.00016438,2]
[365284979,1749578853505,-490.0,0.00016438,2]
[365284980,1749578853527,-490.0,0.00016438,2]
[365284981,1749578853555,-490.0,0.00016438,2]
[365284982,1749578853577,-490.0,0.00016438,2]
[365284983,1749578853600,-490.0,0.00016438,2]
[365284984,1749578853622,-490.0,0.00016438,2]
[365284985,1749578853644,-440.0,0.00016438,2]
[365284986,1749578853666,-490.0,0.00016438,2]
[365284987,1749578853689,-490.0,0.00016438,2]
[365284988,1749578853712,-460.0,0.00016438,2]
[365284989,1749578853737,-460.0,0.00016438,2]
[365284990,1749578853763,-490.0,0.00016438,2]
[365284991,1749578853794,-490.0,0.00016438,2]
[365284992,1749578853824,-490.0,0.00016438,2]
[365284993,1749578853847,-490.0,0.00016438,2]
[365284994,1749578853869,-460.0,0.00016438,2]
[365284995,1749578853891,-490.0,0.00016438,2]
[365284996,1749578853913,-490.0,0.00016438,2]
[365284997,1749578853934,-490.0,0.00016438,2]
[365284998,1749578853955,-490.0,0.00016438,2]
[365284999,1749578853977,-490.0,0.00016438,2]
[365285000,1749578853999,-490.0,0.00016438,2]
[365285001,1749578854021,-432.89108815,0.00016438,2]
[365285003,1749578884181,150.0,0.0002,30]
[365285004,1749578887743,604.96,0.00014177,2]
[365285005,1749578921491,232.86,0.00019205,30]
[365285006,1749578938339,64.52743586,0.00013699,2]
[365285007,1749578938361,178.21256414,0.00013699,2]
[365285009,1749578948134,-500.0,0.00016164,2]
[365285010,1749578952083,743.0,0.00038557,50]
[365285011,1749578958103,-490.0,0.00016438,2]
[365285012,1749578958133,-490.0,0.00016438,2]
[365285013,1749578958160,-519.51753731,0.00016438,2]
[365285014,1749578958185,-490.0,0.00016438,2]
[365285015,1749578958211,-460.0,0.00016438,2]
[365285016,1749578958236,-490.0,0.00016438,2]
[365285017,1749578958264,-490.0,0.00016438,2]
[365285018,1749578958291,-490.0,0.00016438,2]
[365285019,1749578958318,-47.11698964,0.00016438,2]
[365285020,1749578958367,1333.0,0.00024505,120]
[365285024,1749579003938,1000.0,0.00038557,50]
[365285025,1749579013928,1000.0,0.00038557,50]
[365285026,1749579021271,1000.0,0.00038557,50]
[365285027,1749579026829,1000.0,0.00038557,50]
[365285029,1749579031583,-300.0,0.00016437,2]
[365285030,1749579031594,-487.72537109,0.00016437,2]
[365285031,1749579031606,-712.27462891,0.00016437,2]
[365285032,1749579031617,-442.88301036,0.00016438,2]
[365285033,1749579031627,-141.0014693,0.00016438,2]
[365285034,1749579031845,-348.9985307,0.00016438,2]
[365285035,1749579031855,-192.44584563,0.00016438,2]
[365285036,1749579031867,-297.55415437,0.00016438,2]
[365285037,1749579031877,-490.0,0.00016438,2]
[365285038,1749579031887,-448.13980411,0.00016438,2]
[365285039,1749579031898,-490.0,0.00016438,2]
[365285040,1749579031907,-490.0,0.00016438,2]
[365285041,1749579031917,-490.0,0.00016438,2]
[365285042,1749579031927,-490.0,0.00016438,2]
[365285043,1749579031942,-490.0,0.00016438,2]
[365285044,1749579031952,-490.0,0.00016438,2]
[365285045,1749579031962,-288.82,0.00016438,2]
[365285046,1749579031972,-490.0,0.00016438,2]
[365285047,1749579031982,-221.90400033,0.00016438,2]
[365285048,1749579031999,-268.09599967,0.00016438,2]
[365285050,1749579032008,-361.59906195,0.00016438,2]
[365285052,1749579032018,-220.30493838,0.00016438,2]
[365285076,1749579037414,1224.0,0.00038557,50]
[365285077,1749579037480,-269.69506162,0.00016438,2]
[365285078,1749579037490,-490.0,0.00016438,2]
[365285079,1749579037499,-462.97543503,0.00016438,2]
[365285080,1749579037508,-304.57725489,0.00016438,2]
[365285081,1749579037519,-185.42274511,0.00016438,2]
[365285082,1749579037528,-490.0,0.00016438,2]
[365285083,1749579037538,-416.79914612,0.00016438,2]
[365285084,1749579037744,-73.20085388,0.00016438,2]
[365285085,1749579037753,-386.57,0.00016438,2]
[365285086,1749579037762,-490.0,0.00016438,2]
[365285087,1749579037772,-4.05798813,0.00016438,2]
[365285088,1749579037797,-485.94201187,0.00016438,2]
[365285090,1749579037806,-490.0,0.00016438,2]
[365285092,1749579037816,-490.0,0.00016438,2]
[365285095,1749579037829,-490.0,0.00016438,2]
[365285097,1749579037838,-1649.3,0.00016438,2]
[365285099,1749579037848,-490.0,0.00016438,2]
[365285101,1749579037857,-490.0,0.00016438,2]
[365285103,1749579037866,-490.0,0.00016438,2]
[365285105,1749579037875,-461.04,0.00016438,2]
[365285106,1749579037884,-490.0,0.00016438,2]
[365285108,1749579037894,-490.0,0.00016438,2]
[365285111,1749579037905,-490.0,0.00016438,2]
[365285112,1749579037916,-490.0,0.00016438,2]
[365285114,1749579037926,-490.0,0.00016438,2]
[365285116,1749579037935,-490.0,0.00016438,2]
[365285118,1749579037944,-490.0,0.00016438,2]
[365285120,1749579037953,-490.0,0.00016438,2]
[365285122,1749579037962,-490.0,0.00016438,2]
[365285124,1749579037973,-490.0,0.00016438,2]
[365285126,1749579037982,-490.0,0.00016438,2]
[365285128,1749579037991,-490.0,0.00016438,2]
[365285130,1749579038000,-490.0,0.00016438,2]
[365285132,1749579038010,-490.0,0.00016438,2]
[365285134,1749579038020,-490.0,0.00016438,2]
[365285136,1749579038029,-490.0,0.00016438,2]
[365285138,1749579038038,-490.0,0.00016438,2]
[365285140,1749579038048,-490.0,0.00016438,2]
[365285143,1749579038058,-490.0,0.00016438,2]
[365285144,1749579038067,-490.0,0.00016438,2]
[365285146,1749579038076,-490.0,0.00016438,2]
[365285148,1749579038086,-490.0,0.00016438,2]
[365285150,1749579038095,-490.0,0.00016438,2]
[365285152,1749579038105,-504.07025092,0.00016438,2]
[365285154,1749579038114,-504.94,0.00016438,2]
[365285156,1749579038123,-490.0,0.00016438,2]
[365285158,1749579038132,-490.0,0.00016438,2]
[365285160,1749579038142,-490.0,0.00016438,2]
[365285161,1749579038151,-329.29073453,0.00016438,2]
[365285163,1749579038160,-331.99931639,0.00016438,2]
[365285165,1749579038170,-301.09,0.00016438,2]
[365285167,1749579038179,-490.0,0.00016438,2]
[365285169,1749579038189,-490.0,0.00016438,2]
[365285171,1749579038198,-460.0,0.00016438,2]
[365285173,1749579038208,-490.0,0.00016438,2]
[365285175,1749579038217,-460.0,0.00016438,2]
[365285177,1749579038226,-460.0,0.00016438,2]
[365285179,1749579038236,-490.0,0.00016438,2]
[365285181,1749579038245,-490.0,0.00016438,2]
[365285183,1749579038254,-480.0,0.00016438,2]
[365285185,1749579038263,-490.0,0.00016438,2]
[365285187,1749579038275,-574.07256205,0.00016438,2]
[365285189,1749579038284,-490.0,0.00016438,2]
[365285191,1749579038293,-490.0,0.00016438,2]
[365285193,1749579038302,-490.0,0.00016438,2]
[365285195,1749579038311,-490.0,0.00016438,2]
[365285197,1749579038322,-559.21522852,0.00016438,2]
[365285199,1749579038331,-491.39571037,0.00016438,2]
[365285201,1749579038340,-490.0,0.00016438,2]
[365285203,1749579038350,-490.0,0.00016438,2]
[365285205,1749579038359,-1009.4,0.00016438,2]
[365285207,1749579038368,-490.0,0.00016438,2]
[365285209,1749579038378,-553.14,0.00016438,2]
[365285211,1749579038387,-490.0,0.00016438,2]
[365285213,1749579038397,-490.0,0.00016438,2]
[365285215,1749579038406,-490.0,0.00016438,2]
[365285217,1749579038415,-490.0,0.00016438,2]
[365285219,1749579038423,-490.0,0.00016438,2]
[365285221,1749579038432,-481.223757,0.00016438,2]
[365285223,1749579038443,-490.0,0.00016438,2]
[365285225,1749579038452,-490.0,0.00016438,2]
[365285227,1749579038461,-490.0,0.00016438,2]
[365285229,1749579038470,-490.0,0.00016438,2]
[365285231,1749579038480,-281.05,0.00016438,2]
[365285233,1749579038489,-490.0,0.00016438,2]
[365285235,1749579038499,-610.13,0.00016438,2]
[365285236,1749579038508,-490.0,0.00016438,2]
[365285239,1749579038518,-627.49,0.00016438,2]
[365285240,1749579038527,-490.0,0.00016438,2]
[365285243,1749579038537,-490.0,0.00016438,2]
[365285245,1749579038547,-490.0,0.00016438,2]
[365285247,1749579038556,-490.0,0.00016438,2]
[365285249,1749579038566,-490.0,0.00016438,2]
[365285251,1749579038575,-730.72,0.00016438,2]
[365285253,1749579038585,-460.0,0.00016438,2]
[365285255,1749579038594,-490.0,0.00016438,2]
[365285256,1749579038603,-490.0,0.00016438,2]
[365285259,1749579038613,-490.0,0.00016438,2]
[365285261,1749579038623,-490.0,0.00016438,2]
[365285262,1749579038632,-490.0,0.00016438,2]
[365285264,1749579038642,-490.0,0.00016438,2]
[365285267,1749579038651,-490.0,0.00016438,2]
[365285269,1749579038661,-490.0,0.00016438,2]
[365285271,1749579038671,-1016.47,0.00016438,2]
[365285273,1749579038680,-490.0,0.00016438,2]
[365285275,1749579038690,-478.11669778,0.00016438,2]
[365285374,1749579039752,-43.90330222,0.00016438,2]
[365285376,1749579039763,-490.0,0.00016438,2]
[365285378,1749579039772,-456.68407883,0.00016438,2]
[365285380,1749579039784,-33.31592117,0.00016438,2]
[365285382,1749579039793,-484.20537847,0.00016438,2]
[365285384,1749579039811,-5.79462153,0.00016438,2]
[365285387,1749579039821,-437.75341772,0.00016438,2]
[365285397,1749579039914,-52.24658228,0.00016438,2]
[365285399,1749579039923,-490.0,0.00016438,2]
[365285401,1749579039933,-490.0,0.00016438,2]
[365285403,1749579039943,-490.0,0.00016438,2]
[365285405,1749579039953,-490.0,0.00016438,2]
[365285408,1749579039966,-490.0,0.00016438,2]
[365285410,1749579039975,-538.07,0.00016438,2]
[365285412,1749579039984,-490.0,0.00016438,2]
[365285414,1749579039994,-490.0,0.00016438,2]
[365285416,1749579040003,-490.0,0.00016438,2]
[365285418,1749579040013,-490.0,0.00016438,2]
[365285420,1749579040022,-490.0,0.00016438,2]
[365285422,1749579040032,-490.0,0.00016438,2]
[365285424,1749579040041,-490.0,0.00016438,2]
[365285426,1749579040050,-490.0,0.00016438,2]
[365285428,1749579040060,-1702.17,0.00016438,2]
[365285430,1749579040069,-490.0,0.00016438,2]
[365285432,1749579040079,-490.0,0.00016438,2]
[365285434,1749579040088,-490.0,0.00016438,2]
[365285436,1749579040097,-490.0,0.00016438,2]
[365285438,1749579040107,-490.0,0.00016438,2]
[365285440,1749579040116,-490.0,0.00016438,2]
[365285442,1749579040125,-490.0,0.00016438,2]
[365285444,1749579040134,-490.0,0.00016438,2]
[365285446,1749579040143,-490.0,0.00016438,2]
[365285448,1749579040152,-490.0,0.00016438,2]
[365285450,1749579040162,-490.0,0.00016438,2]
[365285452,1749579040171,-472.84,0.00016438,2]
[365285454,1749579040182,-490.0,0.00016438,2]
[365285456,1749579040192,-490.0,0.00016438,2]
[365285458,1749579040202,-490.0,0.00016438,2]
[365285460,1749579040212,-490.0,0.00016438,2]
[365285462,1749579040221,-490.0,0.00016438,2]
[365285464,1749579040230,-490.0,0.00016438,2]
[365285466,1749579040239,-490.0,0.00016438,2]
[365285468,1749579040249,-490.0,0.00016438,2]
[365285470,1749579040258,-490.0,0.00016438,2]
[365285472,1749579040267,-490.0,0.00016438,2]
[365285474,1749579040279,-490.0,0.00016438,2]
[365285476,1749579040288,-490.0,0.00016438,2]
[365285478,1749579040297,-490.0,0.00016438,2]
[365285480,1749579040307,-490.0,0.00016438,2]
[365285482,1749579040317,-490.0,0.00016438,2]
[365285484,1749579040326,-10780.1,0.00016438,2]
[365285486,1749579040335,-490.0,0.00016438,2]
[365285488,1749579040348,-490.0,0.00016438,2]
[365285490,1749579040357,-782.52,0.00016438,2]
[365285492,1749579040366,-490.0,0.00016438,2]
[365285494,1749579040376,-490.0,0.00016438,2]
[365285496,1749579040385,-490.0,0.00016438,2]
[365285498,1749579040394,-989.88,0.00016438,2]
[365285500,1749579040403,-375.47778807,0.00016438,2]
[365285502,1749579040412,-633.14,0.00016438,2]
[365285504,1749579040421,-490.0,0.00016438,2]
[365285506,1749579040430,-420.0,0.00016438,2]
[365285508,1749579040440,-490.0,0.00016438,2]
[365285510,1749579040449,-490.0,0.00016438,2]
[365285512,1749579040459,-154.96,0.00016438,2]
[365285514,1749579040468,-490.0,0.00016438,2]
[365285516,1749579040478,-490.0,0.00016438,2]
[365285518,1749579040487,-490.0,0.00016438,2]
[365285520,1749579040497,-375.06,0.00016438,2]
[365285522,1749579040506,-290.5,0.00016438,2]
[365285524,1749579040516,-316.72,0.00016438,2]
[365285526,1749579040526,-490.0,0.00016438,2]
[365285529,1749579040536,-490.0,0.00016438,2]
[365285531,1749579040546,-490.0,0.00016438,2]
[365285533,1749579040555,-490.0,0.00016438,2]
[365285535,1749579040565,-616.78,0.00016438,2]
[365285537,1749579040574,-490.0,0.00016438,2]
[365285539,1749579040583,-460.0,0.00016438,2]
[365285541,1749579040592,-515.35,0.00016438,2]
[365285543,1749579040602,-490.0,0.00016438,2]
[365285545,1749579040611,-543.99,0.00016438,2]
[365285547,1749579040620,-490.0,0.00016438,2]
[365285549,1749579040629,-550.43,0.00016438,2]
[365285551,1749579040639,-1000.0,0.00016438,2]
[365285553,1749579040649,-490.0,0.00016438,2]
[365285555,1749579040658,-527.26,0.00016438,2]
[365285557,1749579040668,-274.9149748,0.00016438,2]
[365285559,1749579040678,-490.0,0.00016438,2]